Workbook

Sheet Frontespizio
F31: Nei fogli che seguono
F32: è possibile selezionare solo
F33: le celle evidenziate dal colore
F34: Azzurro

Sheet Hp1 - EntroGIOISCR
B2: Pianificazione Fiscale e Gestione del CashFlow
C4: Hp 1: Regime Forfettario SU - GIOVANE ISCRITTO - Reddito Professionale entro il minimale 17.069
B7: FATTURATO | C7: 15000 | E7: TAX | F7: 0.05 | H7: TOTALE | I7: =C19+D19+E19+F19 -> 2475.585577
B8: IMPONIBILE | C8: =C7/1.04 -> 14423.07692 | E8: SOGGETTIVO | F8: 0.0725 | H8: PRESSIONE | I8: =K19/C7 -> 0.1650390385
B9: BASE CONTR | C9: =C8*0.78 -> 11250 | E9: INTEGRATIVO | F9: 0.04
B10: REDDITO | C10: =C9-D19-F19 -> 10390.375 | H10: NETTO | I10: =C7-I7 -> 12524.41442
H11: NETTO MENSILE | I11: =I10/12 -> 1043.701202
C12: IMPOSTE DIRETTE | D12: SOGGETTIVO | E12: INTEGRATIVO | F12: MATERNITA'
B13: SALDO | C13: =C10*F7 -> 519.51875 | D13: =C9*F8/2 -> 407.8125 | E13: =C8*0.04/2 -> 288.4615385 | F13: =44/2 -> 22
B14: ACCONTO | C14: =C13 -> 519.51875 | D14: =D13 -> 407.8125 | E14: =E13 -> 288.4615385 | F14: =F13 -> 22 | H14: 2023-06-30 | I14: =K14*-1 -> -563 | K14: =(I26+I27)/2+26.5 -> 563
H15: 2023-09-30 | I15: =K15*-1 -> -554 | K15: =(I26+I27)/2+(F19-26.5) -> 554
H16: 2024-07-31 | I16: =K17*-1 -> -779.278125 | J16: CONGUAGLIO | K16: =(D19+E19+F19)-(K14+K15) -> 319.5480769
H17: 2024-11-30 | I17: =K18*-1 -> -259.759375 | K17: =C13+(C14/2) -> 779.278125
H18: 2024-12-31 | I18: =K16*-1 -> -319.5480769 | K18: =C14/2 -> 259.759375
B19: USCITE | C19: =SUM(C13:C18) -> 1039.0375 | D19: =SUM(D13:D18) -> 815.625 | E19: =SUM(E13:E18) -> 576.9230769 | F19: =SUM(F13:F18) -> 44 | H19: TOTALE | I19: =SUM(I14:I18) -> -2475.585577 | K19: =SUM(K14:K18) -> 2475.585577
K20: =IF((I7=K19),"QUADRA","ERRORE!") -> QUADRA
B21: Importi arrotondati all'unità di euro
H25: MINIMI GIOISCR
H26: SOGGETTIVO | I26: 825
H27: INTEGRATIVO | I27: 248

Sheet Hp2 - SplafGIOISCR
B2: Pianificazione Fiscale e Gestione del CashFlow
B4: Hp 2: Regime Forfettario SU - GIOVANE ISCRITTO - Splafonamento Reddito Medio € 27.903
B7: FATTURATO | C7: 37205 | E7: TAX | F7: 0.05 | H7: TOTALE | I7: =C19+D19+E19+F19 -> 7902.375913
B8: IMPONIBILE | C8: =C7/1.04 -> 35774.03846 | E8: SOGGETTIVO | F8: 0.145 | H8: PRESSIONE | I8: =K19/C7 -> 0.2124009115
B9: BASE CONTR | C9: =C8*0.78 -> 27903.75 | E9: INTEGRATIVO | F9: 0.04
B10: REDDITO | C10: =C9-D19-F19 -> 23813.70625 | H10: NETTO | I10: =C7-I7 -> 29302.62409
H11: NETTO MENSILE | I11: =I10/12 -> 2441.885341
C12: IMPOSTE DIRETTE | D12: SOGGETTIVO | E12: INTEGRATIVO | F12: MATERNITA'
B13: SALDO | C13: =C10*F7 -> 1190.685313 | D13: =C9*F8/2 -> 2023.021875 | E13: =C8*0.04/2 -> 715.4807692 | F13: =44/2 -> 22
B14: ACCONTO | C14: =C13 -> 1190.685313 | D14: =D13 -> 2023.021875 | E14: =E13 -> 715.4807692 | F14: =F13 -> 22 | H14: 2023-06-30 | I14: =K14*-1 -> -563 | K14: =(I26+I27)/2+26.5 -> 563
H15: 2023-09-30 | I15: =K15*-1 -> -554 | K15: =(I26+I27)/2+(F19-26.5) -> 554
H16: 2024-07-31 | I16: =K17*-1 -> -1786.027969 | J16: CONGUAGLIO | K16: =(D19+E19+F19)-(K14+K15) -> 4404.005288
H17: 2024-11-30 | I17: =K18*-1 -> -595.3426563 | K17: =C13+(C14/2) -> 1786.027969
H18: 2024-12-31 | I18: =K16*-1 -> -4404.005288 | K18: =C14/2 -> 595.3426563
B19: USCITE | C19: =SUM(C13:C18) -> 2381.370625 | D19: =SUM(D13:D18) -> 4046.04375 | E19: =SUM(E13:E18) -> 1430.961538 | F19: =SUM(F13:F18) -> 44 | H19: TOTALE | I19: =SUM(I14:I18) -> -7902.375913 | K19: =SUM(K14:K18) -> 7902.375913
K20: =IF((I7=K19),"QUADRA","ERRORE!") -> QUADRA
B21: Importi arrotondati all'unità di euro
H25: MINIMI GIOISCR
H26: SOGGETTIVO | I26: 825
H27: INTEGRATIVO | I27: 248
H30: si applica l’aliquota intera del 14,50% (e non quella del 7,25%) sull’intero reddito professionale dichiarato.
H31: https://www.inarcassa.it/site/home/contributi/i-benefici-per-i-giovani-iscritti.html

Sheet Hp3 - EntroISCR
B2: Pianificazione Fiscale e Gestione del CashFlow
B4: Hp 3: Regime Forfettario - ISCRITTO - Reddito Professionale entro il minimale 17.069
B7: FATTURATO | C7: 20000 | E7: TAX | F7: 0.15 | H7: TOTALE | I7: =C19+D19+E19+F19 -> 6822.530769
B8: IMPONIBILE | C8: =C7/1.04 -> 19230.76923 | E8: SOGGETTIVO | F8: 0.145 | H8: PRESSIONE | I8: =K19/C7 -> 0.354915
B9: BASE CONTR | C9: =C8*0.78 -> 15000 | E9: INTEGRATIVO | F9: 0.04
B10: REDDITO | C10: =C9-D19-F19 -> 12781 | H10: NETTO | I10: =C7-I7 -> 13177.46923
H11: NETTO MENSILE | I11: =I10/12 -> 1098.122436
C12: IMPOSTE DIRETTE | D12: SOGGETTIVO | E12: INTEGRATIVO | F12: MATERNITA'
B13: SALDO | C13: =C10*F7 -> 1917.15 | D13: =C9*F8/2 -> 1087.5 | E13: =C8*0.04/2 -> 384.6153846 | F13: =44/2 -> 22
B14: ACCONTO | C14: =C13 -> 1917.15 | D14: =D13 -> 1087.5 | E14: =E13 -> 384.6153846 | F14: =F13 -> 22 | H14: 2023-06-30 | I14: =K14*-1 -> -1636.5 | K14: =( (I26+I27)/2) +26.5 -> 1636.5
H15: 2023-09-30 | I15: =K15*-1 -> -1627.5 | K15: =(I26+I27)/2+ (F19-26.5) -> 1627.5
H16: 2024-07-31 | I16: =K17*-1 -> -2875.725 | K16: =IF( (D19+E19+F19)-(K14+K15)<0, 0, (D19+E19+F19)-(K14+K15) ) -> 0
H17: 2024-11-30 | I17: =K18*-1 -> -958.575 | K17: =C13+(C14/2) -> 2875.725
H18: 2024-12-31 | I18: =K16*-1 -> 0 | K18: =C14/2 -> 958.575
B19: USCITE | C19: =SUM(C13:C18) -> 3834.3 | D19: =SUM(D13:D18) -> 2175 | E19: =SUM(E13:E18) -> 769.2307692 | F19: =SUM(F13:F18) -> 44 | H19: TOTALE | I19: =SUM(I14:I18) -> -7098.3 | K19: =SUM(K14:K18) -> 7098.3
K20: =IF((I7=K19),"QUADRA","ERRORE!") -> ERRORE!
B21: Importi arrotondati all'unità di euro
H25: MINIMI GIOISCR
H26: SOGGETTIVO | I26: 2475
H27: INTEGRATIVO | I27: 745

Sheet Hp4 - PlafISCR
B2: Pianificazione Fiscale e Gestione del CashFlow
B4: Hp 4: Regime Forfettario SU - ISCRITTO - Splafonamento Reddito Medio € 27.903
B7: FATTURATO | C7: 50000 | E7: TAX | F7: 0.15 | H7: TOTALE | I7: =C19+D19+E19+F19 -> 17010.12692
B8: IMPONIBILE | C8: =C7/1.04 -> 48076.92308 | E8: SOGGETTIVO | F8: 0.145 | H8: PRESSIONE | I8: =K19/C7 -> 0.3402025385
B9: BASE CONTR | C9: =C8*0.78 -> 37500 | E9: INTEGRATIVO | F9: 0.04
B10: REDDITO | C10: =C9-D19-F19 -> 32018.5 | H10: NETTO | I10: =C7-I7 -> 32989.87308
H11: NETTO MENSILE | I11: =I10/12 -> 2749.15609
C12: IMPOSTE DIRETTE | D12: SOGGETTIVO | E12: INTEGRATIVO | F12: MATERNITA'
B13: SALDO | C13: =C10*F7 -> 4802.775 | D13: =C9*F8/2 -> 2718.75 | E13: =C8*0.04/2 -> 961.5384615 | F13: =44/2 -> 22
B14: ACCONTO | C14: =C13 -> 4802.775 | D14: =D13 -> 2718.75 | E14: =E13 -> 961.5384615 | F14: =F13 -> 22 | H14: 2023-06-30 | I14: =K14*-1 -> -1636.5 | K14: =(I26+I27)/2+26.5 -> 1636.5
H15: 2023-09-30 | I15: =K15*-1 -> -1627.5 | K15: =(I26+I27)/2+(F19-26.5) -> 1627.5
H16: 2024-07-31 | I16: =K17*-1 -> -7204.1625 | K16: =IF((D19+E19+F19)-(K14+K15)<0,0,(D19+E19+F19)-(K14+K15)) -> 4140.576923
H17: 2024-11-30 | I17: =K18*-1 -> -2401.3875 | K17: =C13+(C14/2) -> 7204.1625
H18: 2024-12-31 | I18: =K16*-1 -> -4140.576923 | K18: =C14/2 -> 2401.3875
B19: USCITE | C19: =SUM(C13:C18) -> 9605.55 | D19: =SUM(D13:D18) -> 5437.5 | E19: =SUM(E13:E18) -> 1923.076923 | F19: =SUM(F13:F18) -> 44 | H19: TOTALE | I19: =SUM(I14:I18) -> -17010.12692 | K19: =SUM(K14:K18) -> 17010.12692
K20: =IF((I7=K19),"QUADRA","ERRORE!") -> QUADRA
B21: Importi arrotondati all'unità di euro
H25: MINIMI GIOISCR
H26: SOGGETTIVO | I26: 2475
H27: INTEGRATIVO | I27: 745

Sheet FLAT TAX
B4: FLAT TAX INCREMENTALE
B6: Anno | C6: Reddito | G6: Differenza
B7: 2023 | C7: 105000 | G7: =IF( (C7-MAX(C8:C10))>0, (C7-MAX(C8:C10)), "NON APPLICABILE") -> 40000
B8: 2022 | C8: 63000 | G8: Riduzione
B9: 2021 | C9: 65000 | G9: =MAX(C8:C10)*0.05 -> 3250
B10: 2020 | C10: 55000
C12: Base imponibile | F12: Base imponibile | G12: TAX
B13: Flat Tax 15% | C13: =G7 -> 40000 | D13: - | E13: =G9 -> 3250 | F13: =G7-G9 -> 36750 | G13: =F13*0.15 -> 5512.5
B14: IRPEF | C14: =C7 -> 105000 | D14: - | E14: =F13 -> 36750 | F14: =C7-F13 -> 68250 | G14: =E32 -> 22247.5
B15: TAX | G15: =G13+G14 -> 27760
C17: Base imponibile | F17: Base imponibile | G17: IRPEF
B18: IRPEF | C18: =C7 -> 105000 | F18: =C18 -> 105000 | G18: =E40 -> 38050
B21: Risparmio di Imposta | G21: =G18-G15 -> 10290
B27: Reddito imponibile IRPEF+FT | E27: =F14 -> 68250 | F27: %
C28: 15000 | D28: 15000 | E28: =IF(E27>$C28,$C28*$F28,E27*$F28) -> 3450 | F28: 0.23
C29: 28000 | D29: 28000 | E29: =IF(E27>$C29, ($C29-$C28)*$F29, IF(E27<$C28,0, (E27-$C28)*$F29) ) -> 3250 | F29: 0.25
C30: 50000 | D30: 50000 | E30: =IF(E27>$C30, ($C30-$C29)*$F30, IF(E27<$C29,0, (E27-$C29)*$F30)) -> 7700 | F30: 0.35
E31: =IF(E27>$C30, (E27-$C30)*$F31,0) -> 7847.5 | F31: 0.43
E32: =SUM(E28:E31) -> 22247.5
B35: Reddito imponibile IRPEF | E35: =C18 -> 105000 | F35: %
C36: 15000 | D36: 15000 | E36: =IF(E35>$C36,$C36*$F36,E35*$F36) -> 3450 | F36: 0.23
C37: 28000 | D37: 28000 | E37: =IF(E35>$C37, ($C37-$C36)*$F37, IF(E35<$C36,0, (E35-$C36)*$F37) ) -> 3250 | F37: 0.25
C38: 50000 | D38: 50000 | E38: =IF(E35>$C38, ($C38-$C37)*$F38, IF(E35<$C37,0, (E35-$C37)*$F38)) -> 7700 | F38: 0.35
E39: =IF(E35>$C38, (E35-$C38)*$F39,0) -> 23650 | F39: 0.43
E40: =SUM(E36:E39) -> 38050

Sheet Impostazioni (hidden)
A1: Allegato: | B1: Percorso dell'ultimo file
A2: HP1: | B2: C:\Users\massimo.crosara\Desktop\Hp1 - EntroGIOISCR-2023-feb-20 9-13-15.pdf
A3: HP2:
A4: HP3:
A5: HP4:
A6: FLAT TAX:
